[Event "EU-ch 12th"]
[Site "Aix les Bains"]
[Date "2011.03.22"]
[Round "1"]
[White "Wojtaszek, Radoslaw"]
[Black "Roser, Kevin"]
[Result "1/2-1/2"]
[ECO "E04"]
[WhiteElo "2711"]
[BlackElo "2423"]
[Annotator "Marin,M/Primel,D"]
[PlyCount "82"]
[EventDate "2011.03.22"]
[EventType "swiss"]
[EventRounds "11"]
[EventCountry "FRA"]
[SourceTitle "CBM 142 Extra"]
[Source "ChessBase"]
[SourceDate "2011.06.27"]
[SourceVersion "1"]
[SourceVersionDate "2011.06.27"]
[SourceQuality "1"]
[TimeControl "40/5400+30:1800+30"]

1. d4 Nf6 2. c4 e6 3. g3 d5 4. Bg2 dxc4 5. Nf3 a6 {[%cal Gb7b5,Gb8c6] Les
Noirs ont plusieurs alternatives pour s'accrocher au P mais en général, les
Blancs obtiennent des bonnes compensations} (5... Nc6 6. Qa4 (6. O-O $143 a6 {
[%cal Ga8b8]} (6... Rb8 7. Nc3 Bb4 8. Qc2 O-O 9. Rd1 Qe7 10. e4 Bxc3 11. bxc3
e5 (11... b5 12. e5 Nd5 13. Ng5 $44 {[%csl Rh7]}) 12. d5 Na5 13. Qa4 b6 14. Ba3
Qe8 15. Qc2 Bg4 16. Bxf8 Kxf8 {Gleizerov,E (2485)-Raetsky,A (2400) Smolensk op
1991 1-0} (16... Bxf3 17. Bxf3 Qxf8 18. Be2 $1 {[%cal Gd1f1,Gf2f4] Gleizerov}))
) 6... Bb4+ (6... Nd5 7. Qxc4 Nb6 8. Qd3 e5 9. Nxe5 Nb4 10. Qc3 Qxd4 11. O-O
Qxc3 12. Nxc3) 7. Bd2 Nd5 (7... Bd6) 8. Qb5) (5... b5 6. Ne5 Nd5 7. O-O Bb7 8.
a4 (8. e4 $5 Nf6 9. d5 {[%csl Re8]} Bd6 10. Nxf7 $1 {Dancevski,O (2380)
-Todorovic,G (2499) Skopje Karposh op 2012 (8) 1/2}) 8... a6 9. b3 cxb3 10.
Qxb3 c6 11. Bb2 Nd7 12. e4 N5b6 13. axb5 cxb5 14. d5 $44 {[%emt 0:33:25]
Primel,D (2092)-Donchenko,A (2460)/Nantes op 4th (2)/1/2-1/2}) (5... Bd7 {
[%cal Gd7c6]} 6. Ne5 Bc6 7. Nxc6 Nxc6 {[%csl Rd4]}) (5... c5) (5... Bb4+ 6. Bd2
a5) 6. Ne5 (6. O-O {La grande ligne qui a le mérite d'éviter l'échec Bb4 mais
Ne5 est considéré comme la ligne critique} Nc6 {Cet ordre de coups permet
aussi de retomber sur la variante 5. Nc6 en ayant évité les complications de
la variante 6.Qa4} (6... b5 7. Ne5 Nd5 8. a4 (8. b3 cxb3 9. Qxb3 Bb7 (9... Be7
10. Rd1 {[%cal Ge2e4]} O-O 11. e4 Nb6 12. Nc3 f6 (12... N8d7 13. Nc6) 13. Nf3
$44)) 8... Bb7 9. e4 Nf6 10. axb5 axb5 11. Rxa8 Bxa8 12. Nc3 c6 13. Bg5 Bb7 14.
Nxf7 $1 Kxf7 15. e5 h6 16. Bh4 {Khalifman,A (2485)-Novikov,I (2460) URS-ch U26
Lvov 1985 1-0} (16. Bxf6 gxf6 17. Qh5+ Kg7 18. Ra1 f5 19. Ne2 Rg8 $44 {Glek}))
7. e3 (7. Nc3 Rb8 8. e4 Be7 (8... b5) 9. Qe2 b5 10. Rd1 Nb4 {[%csl Gd3]} 11. d5
$44 {[%cal Gd1d8];Gelfand,B (2723)-Riazantsev,A (2638) RUS-chT Dagomys 2008 
(10) 1/2}) 7... Bd7 {Un peu passif} (7... Rb8 8. Qe2 {Sasikiran,K (2681)
-Topalov,V (2803) Khanty Mansiysk ol (Men) 39th 2010 (5.1) 1/2} (8. Nfd2 {
[%cal Gd2c4,Gg2c6]})) 8. Qe2 b5 9. Rd1 (9. Nc3 Nd5 10. e4 $44 Nxc3 (10... Ndb4
11. d5 $36) 11. bxc3 Bd6 (11... Be7 12. d5) 12. Bg5 Be7 13. d5 $1 {Le,Q (2705)
-Roser,K (2409) Tradewise Festival Masters 2013 (2) 1-0}) 9... Be7 10. e4) (6.
a4 $143 Nc6 $1 {Retombe sur la variante 5. Nc6 mais le coup a4 n'est pas trés
utile} 7. O-O Rb8 8. a5 Bb4 {Gagnant un tempo important} 9. Qa4 O-O $132) 6...
Bb4+ $5 {Très populaire depuis quelques années et l'isséen relève le défi
théorique face а un TOP GMI!} (6... Ra7 {[%cal Gb7b5] Peu joué mais astucieux
pour jouer b5} 7. O-O b6 {[%emt 2:44:59] Beliavsky,A (2645)-Portisch,L (2595)/
HUN-chT 1998/1/2-1/2} (7... b5 $6 8. a4 $1 $36 {[%cal Ga1a7]}) (7... Bd7)) (
6... c5 $5 {Plus solide} 7. Na3 $32 (7. Be3 Nd5 {[%csl Re3][%cal Gd5e3]}) 7...
cxd4 8. Naxc4 Bc5 (8... Ra7 {[%cal Gb7b5]} 9. Bd2 b6 10. Qb3 Bb7 11. Bxb7 Rxb7
12. Na5 Ra7 13. Nac6 Nxc6 14. Nxc6 Qa8 15. Qf3 Rc7 16. Rc1 Bc5 {Kopylov,M 
(2421)-Levin,F (2524) Kiel op 15th 2002 (6) 1/2} (16... d3 $5 17. exd3 Nd5 $44)
) 9. O-O O-O 10. Bd2 (10. Bg5 h6 11. Bxf6 Qxf6 12. Nd3) 10... Nd5 {[%cal Gb7b5]
} (10... Nbd7 11. Rc1 Qe7 12. Nd3 $14) 11. Rc1 {[%cal Gc1c5]} Nd7 12. Nd3 $44 {
Anand,V (2787)-Topalov,V (2805) World Championship 2010 (2) 1-0}) 7. Nc3 (7.
Bd2 $143 Qxd4 8. Bxb4 Qxe5 9. Na3 Nc6 $132 {[%emt 0:33:29] Aronian,L (2773)
-Mamedyarov,S (2721)/EU-Cup 25th Ohrid (7.1)/0-1}) 7... Nd5 {[%cal Gd5c3,Gb7b5]
Non seulement le N fait pression sur le Nc3 cloué mais il ferme la diagonale
du Bg2 pour garder l'option de jouer b7b5 ou encore Nb6 s'accrochant au Pc4} 8.
O-O $5 {Une idée du spécialiste de la Catalane KRAMNIK} (8. Bd2 {Plus courant}
b5 (8... Nb6 {[%cal Gb6c4]} 9. e3 N8d7 10. Nxd7 Bxd7 11. Bxb7 Rb8 12. Bg2 O-O
13. O-O Qe7 14. e4 $14 {[%csl Gd4,Ge4];Houska,J (2392)-Hammer,J (2583) NOR-ch
Bergen 2009 (3) 1/2}) 9. O-O Bxc3 10. bxc3 O-O (10... Bb7 11. e4 $44) 11. a4 $1
c6 (11... f6) 12. e4 $44 {Horvath,C (2530)-Suetin,A (2420) Velden op 1996 (5)
1-0} (12. Qc2 f6 13. Ng4 Nd7 14. e4 Ne7 15. axb5 cxb5 16. Bc1 Bb7 17. Ba3 Re8
18. Rfd1 $14)) 8... Nxc3 $5 {Trés peu de joueurs ont accepté le second P et la
partie est d'importance théorique. Il faut d'ailleurs noter qu'il y a eu
ensuite beaucoup de parties jouées sur cette suite en 2011 et 2012.} (8... O-O
{[%emt 0:33:27] Kramnik,V (2769)-Morozevich,A (2758)/World Championship (2)/1-0
}) (8... Bxc3 $6 9. e4 $1 {[%cal Gd1g4] Rappelle le thème d'une partie fameuse
de GULKO sur la variante b5} Bxb2 10. Bxb2 Nb6 11. Rc1 {[%csl Rc4]} O-O 12.
Nxc4 $32 {[%csl Ra8,Rb8,Rc8]}) 9. bxc3 Bxc3 10. Rb1 Qxd4 (10... Bxd4 $143 11.
Nxc4 {[%csl Rb7,Gg2][%cal Ge2e3,Gd1d8]} O-O (11... c6 $2 12. Ba3) 12. Ba3 $44)
11. Qa4+ $8 {[%cal Ga4a8]} (11. Qxd4 Bxd4 12. Nxc4 Nd7 13. Rd1 {Zhou Weiqi 
(2610)-Vaibhav,S (2430) Asia-ch Mashhad 2011 (1) 1-0} (13. Ba3 {[%csl Ga3,Re8]}
)) 11... b5 12. Qa3 $13 {[%csl Ra8,Re8,Rf8][%cal Gg2a8,Ga3f8] Il faut
maintenir le K noir au centre} (12. Rxb5 $2 axb5 13. Qxa8 Qxe5 14. Bf4 Qxe2 15.
Qxb8 O-O) 12... Qxe5 13. Bf4 {Marin: followed by either Bxa8 or Bxc7. White
retrieves most of his material investment. Black's pawns look threatening, but
his king still needs to get castled and in the meanwhile the pawns could
become vulnerable.} (13. Bxa8 b4 $44 {[%csl Gb4,Gc4]}) 13... Qf6 14. Bxc7 (14.
Bxa8 e5 (14... Be5) 15. Qxc3 exf4 16. Qxf6 gxf6 17. Bg2 Be6 $13) 14... Be5 $146
(14... b4 15. Rxb4 (15. Qa5 b3 {Halkias,S (2588)-Galopoulos,N (2430) EU-ch
13th Plovdiv 2012 (11) 1-0} (15... O-O 16. Bxa8 e5 $1 17. Bxb8 Bf5 $13 {
[%cal Gf8a8]})) 15... Bxb4 16. Qxb4 a5 17. Qb5+ Bd7 18. Qxc4 Na6 19. Bxa8 Nxc7
20. Qxc7 Qd8 21. Qa7 O-O 22. Bf3 Ba4 23. Rc1 Qd2 24. Rc5 Qxa2 25. Qxa5 Bb3 26.
Kg2 Qxa5 27. Rxa5 h6 28. h4 Rd8 29. Ra8 {[%emt 0:02:17] Miroshnichenko,E (2684)
-Kasimdzhanov,R (2699)/ Konya 2010/CBM Extra/1/2-1/2}) 15. Bxe5 Qxe5 {Une
position étonnante: les Noirs ont multiplié les coups de Q et les Blancs ont
une énorme avance de développement mais en fait, il n'y a pas vraiment
d'attaque pour le GMI} 16. Bxa8 Qc7 $1 {[%cal Gb8c6,Gc8b7]} 17. Bg2 (17. Qb4 $5
Qe7 18. Qa5 O-O 19. a4 Bd7 20. Bb7 $14 {[%csl Gc8][%cal Ga5c7]}) (17. Rfd1 $5
Nd7 (17... c3 18. Rbc1) (17... Nc6 18. Qc5) 18. Rd6 O-O 19. Rbd1 Qc5 (19... c3
20. Be4) 20. Qxc5 Nxc5 21. Kg2) 17... f6 $1 {[%cal Ge8f7] L'isséen n'a pas
vraiment le choix} (17... Bb7 $6 18. Bxb7 Qxb7 19. Qd6 $1 {[%cal Gf1d1]} (19.
Rfd1 f6 20. Rd6 Kf7 21. Rbd1 {[%csl Rb8][%cal Gd6d7]} Re8) 19... Nd7 20. Rfd1
$40 {[%csl Rd7,Re8,Rh8][%cal Ga2a4]}) 18. Qe3 {[%csl Re6][%cal Ga2a4] Les
Blancs ont du mal а trouver des leviers pour ouvrir le jeu et Qe3 libère une
case pour jouer a4 mais c'est au détriment d'un tempo important qui permet aux
Noirs de renforcer la position par Kf7. Le plus étonnant dans cette position
aigûe est le fait qu'il est difficile pour les Bancs d'activer les R car jouer
par exemple Rfd1 ne servirait pas а grand-chose.} (18. Rfd1 Kf7 19. Rd6 Rd8)
18... Kf7 {[%csl Re6][%cal Gf7e6,Gb8d7]} (18... Bd7 $5 {[%csl Ga4][%cal Gd7a4,
Ge8f7] Peut-être un ordre de coups plus précis pour surcontroler la case
sensible a4 avant de jouer Kf7} 19. a4 O-O) (18... O-O $5 {Plus simple, mais
les Blancs semblent un peu mieux et l'intérêt de Kf7 est de protéger e6 afin
de jouer Nd7}) 19. a4 Bd7 20. axb5 Bxb5 $5 (20... axb5 {Plus naturel mais les
Blancs vont doubler les R sur la colonne "d" et pour développer le N, il
faudrait perdre un autre tempo pour défendre le Bd7} 21. Rfd1 Na6 22. Rd4 Nc5 {
[%cal Gc5d7,Gc5b3]}) 21. Rfd1 Nd7 $11 22. Rd4 Rc8 (22... Nc5 {[%cal Gh8d8,
Gc5b3]}) (22... c3) 23. Rbd1 Nf8 {[%cal Gf8e6]} (23... Ne5 24. Bh3 {[%csl Re6]
[%cal Gf2f4,Ge3e6]}) 24. Qc3 Qc5 25. Be4 Rc7 26. Rd8 Rd7 {Cet échange va
soulager la défense} 27. R1xd7+ Nxd7 28. Bxh7 f5 $1 {[%csl Rh7] Les Noirs
étaient pourtant en zeitnot mais ils vont trouver des ressources tactiques et
forcer des échanges qui vont aboutir а une finale égale.} 29. Bg8+ Ke7 30. Ra8
Nf6 31. Qd2 {[%cal Gd2d8]} (31. h4 $5) 31... Qd5 $1 {[%cal Gd5d2,Gd5a8]} 32.
Ra7+ Bd7 33. Qb4+ Qd6 34. Qxc4 Nxg8 35. Qxa6 Qxa6 36. Rxa6 Bb5 37. Ra2 Nf6 38.
Rb2 Ba6 39. Ra2 Bb5 40. Rb2 Ba6 41. Ra2 Bb5 {A.MARCHAND: Tout d'abord,
félicitations а notre isséen Kevin ROSER (2423)pour la magnifique nulle contre
le meilleur joueur Polonais GMI WOJTASZEK (2711). Lors de notre réunion d'hier
en fin d'après-midi а la Manufacture, nous étions une dizaine de joueurs (dont
4 jeunes) а suivre coup par coup l'évolution de sa partie. Nous étions plus ou
moins rassurés (а notre petit niveau) sur sa position, mais beaucoup plus
inquiet quant а sa pendule !.Même les blitzeurs ont arrêté leur partie.....ce
qui n'est pas courant !.} 1/2-1/2

[Event "World Women-ch k.o."]
[Site "Teheran"]
[Date "2017.02.23"]
[Round "4.2"]
[White "Ju, Wenjun"]
[Black "Tan, Zhongyi"]
[Result "0-1"]
[ECO "E04"]
[WhiteElo "2583"]
[BlackElo "2502"]
[Annotator "Mikhalchishin,A"]
[PlyCount "74"]
[EventDate "2017.02.11"]
[EventType "k.o."]
[EventRounds "7"]
[EventCountry "IRI"]
[SourceTitle "CBM 177"]
[Source "ChessBase"]
[SourceDate "2017.03.16"]
[SourceVersion "1"]
[SourceVersionDate "2017.03.16"]
[SourceQuality "1"]
[TimeControl "6000+1035"]
[WhiteClock "0:03:47"]
[BlackClock "0:04:23"]

1. d4 Nf6 2. c4 e6 3. g3 d5 4. Nf3 dxc4 5. Bg2 c5 6. O-O Nc6 7. Qa4 Bd7 8. Qxc4
b5 9. Qd3 c4 (9... Rc8 10. dxc5 Bxc5 {is usually considered the main position
worth serious practical investigation.}) ({but I can recommend another option:
} 9... Qb6 10. Nc3 c4 11. Qb1 b4 (11... Rd8 $142) 12. Ne4 Be7 13. Bg5 (13. Ne5
$2 Nxd4 14. Be3) 13... Nxe4 14. Qxe4 Rc8 15. Be3 Qa6 (15... O-O) 16. Rfd1 O-O
17. Ng5 (17. d5 exd5 18. Rxd5 f5 19. Qc2 Be6) 17... Bxg5 (17... f5) 18. Bxg5
Rfe8 (18... c3) 19. Qg4 Ne7 {Danielian,E (2491)-Yildiz,B (2244)/Nalchik 2010.
with complicated play.}) 10. Qd1 ({A very serious option here is} 10. Qc2 Be7 (
10... Rc8 11. e4 (11. a4 a6 12. axb5 axb5 13. Bg5 Be7 14. Rd1 O-O 15. Nc3 Qb6
16. Ne4 Nb4 17. Qc1 Nbd5) 11... Be7 12. Qe2 O-O 13. Rd1 Re8 14. Ne5 Qc7 15. Bf4
Bd6 16. Nxd7 Nxd7 17. e5 Bb4 18. a3 Ba5 19. a4 Bb6 20. Be3 {Gelfand,B (2731)
-Bacrot,E (2692)/Ashdod 2015, with a clear advantage.}) 11. b3 Rc8 12. bxc4
bxc4 13. Ba3 O-O 14. Bxe7 Qxe7 15. Nc3 Nd5 16. Rfc1 Rfd8 17. Qd2 Be8 18. Rab1
f6 19. Nxd5 exd5 20. Rb5 Bf7 21. Ne1 Rb8 22. Rc5 Qd6 {Kraemer,M (2574)-Bacrot,
E (2692)/Berlin GER 2016, with a very good position.}) 10... Rc8 ({One
possibility was} 10... Be7 11. a4 a6 12. axb5 (12. e4 $5) (12. Ne5 Rc8 13. e4
O-O 14. Be3 Be8) 12... axb5 13. Rxa8 Qxa8 14. Ne5 O-O (14... Qc8 15. Nc3 O-O
16. Nxd7 Qxd7 17. Nxb5 Rb8 18. Bxc6 Qxc6 19. Nc3 Nd5 $44) 15. Nxd7 Nxd7 16. d5
exd5 17. Qxd5 Ndb8 18. Qxb5 $18 {1-0 (47) Lukasiewicz,G (2270)-Sliwa,B (2280)
Myslenice 1988}) 11. Re1 {Not energetic enough. The correct way is to start
the attack} (11. Nc3 b4 12. Na4 (12. d5 Ne7 $5 13. dxe6 fxe6 14. Nb1 c3 $1 $132
) 12... Be7 (12... Qa5 13. a3 bxa3 14. Bd2 Qb5 15. Nc3 Qb6 16. bxa3 Nxd4 17.
Nxd4 Qxd4 18. Qc2 Qe5 {0-1 (43) Radulov,I (2405)-Inkiov,V (2475) Sofia 1991}
19. Rfd1 Be7 20. Rab1 $11) 13. Bg5 h6 {[%mdl 4]} (13... O-O 14. e3 Na5 15. Re1
Qe8 (15... h6 16. Bxf6 Bxf6 17. Qc2 Bc6 $11) 16. Nc5 Bxc5 17. Bxf6 Ba4 18. b3
cxb3 (18... gxf6 $1 19. dxc5 Bc6 $11) (18... Bb6 19. bxa4 gxf6 20. d5 Rd8 21.
Nd4 f5 $11) 19. axb3 (19. Nd2 $1 gxf6 20. dxc5 b2 21. Qg4+ Kh8 22. Rab1 $14)
19... Nxb3 {1/2 (27) Eising,J (2355)-De Wit,J (2395) Amsterdam 1984} 20. Nd2
gxf6 21. Nxb3 Bb6 22. Qg4+ Kh8 23. Qh4 $11) 14. Bxf6 Bxf6 (14... gxf6 {was
possible:} 15. Re1 Qa5 16. Nc5 Bxc5 17. dxc5 Qxc5 18. Nd2 Ke7 19. a3 a5 20. Ne4
Qe5) 15. a3 O-O {Gelfand,B (2740)-Anand,V (2780)/Zürich 2013, Black's
position is quite playable.}) 11... Be7 12. e4 O-O 13. d5 $5 {The correct
fight for the initiative.} ({It was tactically wrong to play} 13. Nc3 b4 14.
Na4 Nxd4 15. Nxd4 Bxa4) 13... exd5 (13... Nb4 {was weaker:} 14. d6 Bxd6 15. e5
Be7 16. exf6 Bxf6 17. a4 Nd3 18. axb5 Bxb5 19. Nc3 Nxe1 20. Qxe1) 14. exd5 Nb4
15. Ne5 $2 ({It was necessary to go for a long forced line} 15. d6 Bxd6 16.
Qxd6 Nc2 17. Na3 Nxa1 18. Be3 b4 19. Qxb4 Nd5 20. Qd2 Nxe3 21. fxe3 c3 22. bxc3
Bc6 23. Rxa1 Bxf3 24. Qxd8 Rfxd8 25. Bxf3 Rxc3 26. Nb5 Rxe3 {in which Black
holds easily.}) 15... Bf5 {Now Black takes over the initiative.} 16. g4 (16.
Na3 {was no better:} a6 17. Qf3 Nd3 18. Re2 Bg6) 16... Bc2 $1 17. Qf3 Be4 $1 {
Great move, but there was also the strong} (17... Bd3) 18. Rxe4 Nxe4 19. Qxe4
Bd6 $1 {Now the threats are deadly and there is an unstoppable pin on the
e-file.} 20. Bd2 ({Nothing changes after} 20. Nc3 Re8 21. f4 f6 22. Be3 fxe5
23. f5 Bc5) 20... Re8 21. f4 ({Tactics will be refuted:} 21. Nxf7 Bxh2+ 22. Kf1
(22. Kh1 Qh4 23. Qf3 Nd3) 22... Qd7 23. Qf5 Qxf5 24. gxf5 Nc2) 21... f6 ({
A more direct attack was conducted after} 21... Nd3 22. Qf3 Qb6+ 23. Be3 Bc5
24. Bxc5 Qxc5+ 25. Kf1 Qb4 26. Nc3 Qxb2) 22. Bxb4 Bxb4 23. d6 Qxd6 24. Qd5+
Qxd5 25. Bxd5+ Kf8 26. Nc6 Re1+ $1 {Very energetic play till the end.} (26...
Bc5+ {was much weaker:} 27. Kf1 Re3 28. Nc3) 27. Kf2 Rce8 28. Nxb4 R8e2+ 29.
Kf3 Rxb2 30. Nc6 ({Or} 30. a3 a5 $1 (30... Rexb1 31. Rxb1 Rxb1 32. Nc2 Rb3+ 33.
Ke2 Ke7) 31. Nc6 Rd1 32. Be4 c3) 30... c3 31. Nxc3 Rxa1 32. Ke3 (32. Nxa7 {
was more tricky:} b4 33. Ne2 (33. Ncb5 Rbxa2 $1 34. Bxa2 Rxa2 35. Ke4 b3 36.
Kd3 Rxh2) 33... Rf1+ 34. Ke3 Re1 35. Bf3 Rxa2) 32... Re1+ 33. Kf3 Rd2 34. Be4
a6 35. h4 Rc1 36. Ne2 Rc4 37. Ke3 Rxe2+ 0-1

[Event "Rohde op 12th"]
[Site "Sautron"]
[Date "2012.10.29"]
[Round "3"]
[White "Gleizerov, Evgeny"]
[Black "Riff, Jean Noel"]
[Result "1/2-1/2"]
[ECO "E04"]
[WhiteElo "2564"]
[BlackElo "2473"]
[Annotator "Primel,D"]
[PlyCount "79"]
[EventDate "2012.10.27"]
[EventType "swiss"]
[EventRounds "9"]
[EventCountry "FRA"]
[SourceTitle "EXT 2014"]
[Source "ChessBase"]
[SourceDate "2013.11.20"]
[SourceVersion "1"]
[SourceVersionDate "2013.11.20"]
[SourceQuality "1"]
[TimeControl "40/5400+30:1800+30"]
[WhiteClock "1:30:00"]
[BlackClock "1:30:00"]

1. d4 {[%emt 0:00:00]} Nf6 {[%emt 0:00:00]} 2. c4 {[%emt 0:00:00]} e6 {[%emt 0:
00:00]} 3. g3 {[%emt 0:00:00] Le russe est un spécialiste renommé de la
Catalane} d5 {[%emt 0:00:00]} 4. Nf3 {[%emt 0:00:00]} dxc4 {[%emt 0:00:00]} 5.
Bg2 {[%emt 0:00:03]} Nc6 {[%emt 0:00:00] Une variante agressive pour jouer
pour le gain mais les Blancs ont des bonnes compensations} (5... a6 6. Ne5 c5
7. Na3 cxd4 8. Naxc4 Bc5 9. O-O O-O 10. Bd2 (10. Bg5 h6 11. Bxf6 Qxf6 12. Nd3
Ba7 13. Qa4 $13 {Anand,V (2787)-Topalov,V (2805) World Championship 2010 (6) 1/
2})) 6. Qa4 {[%emt 0:00:06]} (6. O-O {Plus risqué car les Noirs peuvent
s'accrocher au P c4} Rb8 {[%cal Gb7b5]} 7. Nc3 a6 8. e4 Be7 9. Qe2 b5 $132 {
Gelfand,B (2736)-Karpov,A (2670) Wch Blitz 3rd 2007 (6) 1/2}) 6... Bb4+ {
[%emt 0:00:00]} (6... Nd7 $5 7. Qxc4 Nb6 {Blachon,P (2138)-David,A (2631) Syre
Memorial op 33th 2010 (1) 0-1}) 7. Bd2 {[%emt 0:00:09]} Bd6 $5 {[%emt 0:00:00]
[%cal Ge6e5]} (7... Nd5 {La grande ligne} 8. Bxb4 (8. Qb5 $5 {La dernière mode}
)) 8. Bc3 {[%emt 0:11:07] Le français n'avait joué que la grande ligne Nd5
selon les bases et le russe a été un peu surpris par le choix de la variante
Bd6} (8. Qxc4 O-O 9. O-O e5 $11 {Sjugirov,S (2624)-Sokolov,I (2690) Barcelona
Casino 2012 (9) 1/2}) (8. Ne5 $5 Bxe5 9. Bxc6+ bxc6 10. dxe5 Qd5 11. f3 Nd7 12.
Nc3 Qc5 13. f4 $14 {Damljanovic,B (2595)-Marcelin,C (2510) FRA-chT Top 16 Gp
Basse 2008 (10) 1-0}) (8. Na3 {[%cal Ga3c4,Ga3b5]} Bxa3 (8... Ne4 9. Nxc4 Nxd2
10. Nfxd2 Bd7 11. Nxd6+ cxd6 12. Ne4 O-O 13. Nxd6 Qc7 $44 {Beliavsky,A (2690)
-Anand,V (2770) Dortmund 1998 (5) 1/2}) 9. Qxa3 Ne4 10. Be3 Qd6 11. Rc1 Qxa3
12. bxa3 Nd6 13. Ne5 Bd7 $11 {Gustafsson,J (2616)-Khenkin,I (2604) GER-ch 76th
Altenkirchen 2005 (5) 1/2}) (8. O-O O-O 9. Qxc4 e5 10. d5 Ne7 11. Nc3 h6 12.
Rfd1 a6 13. Qb3 Rb8 14. Be1 Bg4 15. Rac1 $14 {Evdokimov,A (2503)-Aleksandrov,A
(2635) RUS-chT Sochi 2005 (11) 1-0} (15. h3)) 8... Bd7 $1 {[%emt 0:00:24][%cal
Gc6d4,Gd7a4,Gb7b5]} (8... O-O 9. Qxc4 (9. Nbd2 a6 {[%cal Gb7b5]} 10. Nxc4 (10.
Qxc4 {Moins logique après avoir joué Nbd2, autant reprendre directement avec
Qc4}) 10... b5 11. Qd1 bxc4 12. Ne5 Nxe5 13. dxe5 Nd5 14. exd6 Bb7 15. Bxd5 (
15. dxc7 Qxc7 16. Bxd5 Bxd5 17. O-O Rfd8 18. Qd4 f6 19. Rfd1 e5 $11) 15... Bxd5
(15... exd5 16. Qd4 f6 17. dxc7 Qxc7 18. O-O {[%csl Rb7]} Rfe8 19. e3 Re4 20.
Qd2 Qc6 {[%cal Gd5d4,Gc6g2,Ge4e3]} 21. f3 Ree8 22. Bd4 $11) 16. e4 $1 Bb7 (
16... Bxe4 17. Qd4) 17. Qd4 f6 18. Qxc4 $14 {[%csl Re6]}) 9... Qe7) 9. Qxc4 {
[%emt 0:00:30]} b5 {[%emt 0:00:02]} (9... O-O 10. O-O b5 {Une simple
interversion de coups} 11. Qd3 b4) 10. Qd3 {[%emt 0:04:37]} (10. Qb3 b4 (10...
O-O) 11. Bd2 Na5 12. Qd3 Rb8 {Likavsky,T (2496)-Tregubov,P (2609) Bundesliga
0708 2007 (11.4) 0-1} (12... c5 $5 13. Ne5 Rc8 14. Nxd7 Qxd7 15. O-O O-O $132))
10... b4 {[%emt 0:00:37]} 11. Bd2 {[%emt 0:00:06]} O-O {[%emt 0:00:04]
Continuant de jouer а tempo} 12. O-O {[%emt 0:07:18]} Rb8 {[%emt 0:00:37]} 13.
Bg5 {[%emt 0:01:48]} h6 {[%emt 0:00:24]} 14. Bxf6 {[%emt 0:00:52]} Qxf6 {
[%emt 0:00:03] L'alsacien avait а ce moment 05 minutes de plus qu'au début de
la partie!} 15. Nbd2 {[%emt 0:00:49]} e5 $1 {[%emt 0:00:33] Les Noirs ont
réussi la poussée thématique et avec la paire de B, ils sont proches de
l'égalité} 16. Ne4 $5 $146 {[%emt 0:21:32][%cal Ge4f6,Ge4d6]} (16. dxe5 Nxe5
17. Nxe5 Qxe5 18. Nc4 Qb5 19. Rfd1 Rfd8 20. Nxd6 cxd6 21. Qxb5 Bxb5 22. e3 $14
{[%csl Rd6]} Rbc8 23. Be4 Kf8 24. Rd4 a5 25. a3 bxa3 26. Rxa3 Rc1+ 27. Kg2 Rc5
28. h4 Ke7 29. g4 Bd7 30. Kg3 Rb8 {Yevseev,D (2531)-Shaidullina,S (2175)/St
Petersburg 2010/EXT 2011/1/2-1/2 (41)}) 16... Qe7 {[%emt 0:01:22]} 17. Rfd1 {
[%emt 0:09:06]} Bf5 {[%emt 0:07:39]} (17... exd4 18. Nxd4 Be5 19. Nxc6 Bxc6 20.
Rac1 Ba8 $11 {[%cal Gf8d8]}) 18. d5 {[%emt 0:01:19]} Na5 {[%emt 0:10:16]} 19.
Nfd2 {[%emt 0:00:47]} (19. Nh4) 19... Nb7 {[%emt 0:00:36][%cal Gb7c5,Gc5d3,
Gc5e4]} 20. Qc4 {[%emt 0:10:59] Les Blancs gardent un petit avantage d'espace}
Nc5 {[%emt 0:02:01]} 21. Nxc5 {[%emt 0:01:19]} Bxc5 {[%emt 0:00:05]} 22. Nb3 $1
{[%emt 0:00:44][%cal Gb3a5,Ga5c6,Gb3c5]} Bb6 {[%emt 0:00:54]} 23. Rac1 {
[%emt 0:00:49]} a5 {[%emt 0:04:44][%cal Ga5a4]} (23... Rfd8) (23... Rfc8) 24.
Nc5 {[%emt 0:01:34]} Qd6 {[%emt 0:01:07]} 25. Na4 {[%emt 0:04:20]} Rfc8 {
[%emt 0:01:34]} 26. Qc6 {[%emt 0:05:12]} Bd7 {[%emt 0:01:15]} 27. Qxd6 {
[%emt 0:01:27]} cxd6 {[%emt 0:00:08]} 28. Rxc8+ {[%emt 0:00:04]} Bxc8 {[%emt 0:
00:09]} 29. Nxb6 {[%emt 0:00:02]} Rxb6 {[%emt 0:00:18]} 30. Rc1 {[%emt 0:00:03]
} Bd7 {[%emt 0:16:15]} 31. Rc7 {[%emt 0:00:41][%csl Rd6] La finale est un peu
meilleure pour les Blancs mais le matériel est trop réduit pour avoir des
chances réelles de gain.} Be8 {[%emt 0:00:06]} 32. Bh3 {[%emt 0:06:18]} (32. f4
{[%cal Gg1f2]}) 32... Kf8 {[%emt 0:01:33]} 33. Bd7 {[%emt 0:04:52]} Bxd7 {
[%emt 0:00:39]} 34. Rxd7 {[%emt 0:00:04]} Ke8 {[%emt 0:00:05]} 35. Ra7 {
[%emt 0:00:58]} Rb5 {[%emt 0:00:26]} 36. e4 {[%emt 0:00:03]} Rc5 $11 {[%emt 0:
00:21]} 37. b3 {[%emt 0:00:10]} g6 {[%emt 0:01:40]} 38. Ra8+ {[%emt 0:03:17]}
Ke7 {[%emt 0:00:07]} 39. Ra7+ {[%emt 0:00:04]} Ke8 {[%emt 0:00:02]} 40. Ra8+ {
[%emt 0:00:00]} 1/2-1/2